bitfinex-derivatives/quotes_ETHF0:USTF0_20250727
["timestamp","ask_amount","ask_price","bid_price","bid_amount"]
[1753611842011,5.07597,3792.5,3792.4,0.8775]
[1753611842205,5.07597,3792.5,3792.4,1.4532]
[1753611842404,5.07597,3792.5,3792.4,3.296]
[1753611842610,5.07597,3792.5,3792.4,2.1812]
[1753611842915,4.39517,3792.5,3792.4,4.6473]
[1753611843812,3.22267,3792.5,3792.4,4.6473]
[1753611844012,4.39517,3792.5,3792.4,4.6473]
[1753611844320,5.07597,3792.5,3792.4,3.296]
[1753611845319,4.39517,3792.5,3792.4,4.6473]
[1753611845719,3.22267,3792.5,3792.4,4.6473]
[1753611846018,1.92077,3792.5,3792.4,4.6473]
[1753611846620,3.22267,3792.5,3792.4,4.6473]
[1753611846920,5.07597,3792.5,3792.4,3.296]
[1753611847214,5.07597,3792.5,3792.4,2.1812]
[1753611848320,5.07597,3792.5,3792.4,3.296]
[1753611850413,5.07597,3792.5,3792.4,1.4532]
[1753611850615,5.07597,3792.5,3792.4,0.8775]
[1753611851220,5.07597,3792.5,3792.4,1.4532]
[1753611851523,5.07597,3792.5,3792.4,2.1812]
[1753611851722,5.07597,3792.5,3792.4,3.296]
[1753611853820,5.07597,3792.5,3792.4,0.8775]
[1753611854419,5.07597,3792.5,3792.4,1.4532]
[1753611855022,5.07597,3792.5,3792.4,2.568]
[1753611856222,3.868,3792.2,3792.1,4.0808]
[1753611856426,4.39521,3792.2,3792.1,4.0808]
[1753611857026,5.07601,3792.2,3792.1,4.0808]
[1753611857424,5.07601,3792.2,3792.1,3.296]
[1753611857822,4.39521,3792.2,3792.1,4.6473]
[1753611858829,5.07601,3792.2,3792.1,3.296]
[1753611860629,5.07601,3792.2,3792.1,4.0808]
[1753611860829,4.39521,3792.2,3792.1,4.0808]
[1753611861129,4.39521,3792.2,3792.1,4.6473]
[1753611863128,5.07601,3792.2,3792.1,3.296]
[1753611863730,0.52724,3792.0,3791.9,4.0853]
[1753611863929,5.07604,3792.0,3791.9,4.0853]
[1753611864125,5.07604,3792.0,3791.9,0.8775]
[1753611866439,4.39532,3791.4,3791.3,7.2886]
[1753611866934,4.39532,3791.4,3791.3,7.8551]
[1753611872335,5.04592,3791.4,3791.3,4.661]
[1753611872538,1.8814,3790.9,3790.8,0.7812]
[1753611872733,1.3418,3790.6,3790.5,1.3524]
[1753611872935,4.91843,3790.6,3790.5,3.1429]
[1753611873436,0.52747,3790.3,3790.2,3.2078]
[1753611873644,0.52747,3790.3,3790.2,5.6084]
[1753611873645,4.91847,3790.3,3790.2,5.6084]
[1753611873939,4.26787,3790.3,3790.2,3.1429]
[1753611874145,4.91847,3790.3,3790.2,3.1429]
[1753611874331,1.89273,3789.9,3789.8,7.28075839]
[1753611874538,1.10133,3789.9,3789.8,7.85195839]
[1753611875342,1.89273,3789.9,3789.8,7.85195839]
[1753611876638,4.26793,3789.9,3789.8,7.85195839]
[1753611877442,1.10133,3789.9,3789.8,7.85195839]
[1753611878532,1.89273,3789.9,3789.8,7.85195839]
[1753611882242,2.66073,3789.9,3789.8,7.85195839]
[1753611882447,4.26793,3789.9,3789.8,7.85195839]
[1753611884541,1.31873,3790.2,3789.8,5.26795839]
[1753611884542,0.7914,3790.2,3789.8,5.26795839]
[1753611884747,1.10129,3790.2,3790.1,4.4339]
[1753611884939,0.52749,3790.2,3790.1,4.4339]
[1753611885140,0.52747,3790.4,3790.2,4.4339]
[1753611885346,1.3188,3790.8,3790.7,1.8649]
[1753611885645,0.5274,3790.8,3790.7,7.6417]
[1753611886841,1.1012,3790.8,3790.7,7.6417]
[1753611887043,1.8926,3790.8,3790.7,7.6417]
[1753611888242,1.1012,3790.8,3790.7,7.6417]
[1753611888547,1.8926,3790.8,3790.7,7.6417]
[1753611888751,3.2002,3790.8,3790.7,7.6417]
[1753611888942,4.2678,3790.8,3790.7,7.6417]
[1753611889142,4.2678,3790.8,3790.7,4.4339]
[1753611892242,4.9034,3790.8,3790.7,3.1429]
[1753611893038,4.9034,3790.8,3790.7,3.8825]
[1753611893248,4.9034,3790.8,3790.7,1.3524]
[1753611893443,2.2428,3790.5,3790.4,0.7812]
[1753611893648,4.90345,3790.5,3790.4,0.7812]
[1753611894546,4.90349,3790.2,3790.1,2.4006]
[1753611894744,4.90349,3790.2,3790.1,1.3524]
[1753611894945,4.26789,3790.2,3790.1,3.1429]
[1753611895146,4.26789,3790.2,3790.1,4.4339]
[1753611896843,1.89269,3790.2,3790.1,4.4339]
[1753611897047,1.31889,3790.2,3790.1,4.4339]
[1753611897250,1.89269,3790.2,3790.1,4.4339]
[1753611897448,4.26789,3790.2,3790.1,4.4339]
[1753611898449,0.52749,3790.2,3790.1,4.4339]
[1753611898851,3.61849,3790.2,3790.1,4.4339]
[1753611899060,4.15929,3790.2,3790.1,4.4339]
[1753611899547,4.78009,3790.2,3790.1,3.1429]
[1753611899751,0.52749,3790.2,3790.1,4.3787]
[1753611900257,4.15929,3790.2,3790.1,4.33]
[1753611900957,2.32462,3790.0,3789.9,4.0134]
[1753611901254,4.78012,3790.0,3789.9,3.2078]
[1753611903857,2.32463,3789.9,3789.8,0.19525839]
[1753611904057,4.78013,3789.9,3789.8,0.19525839]
[1753611904957,5.46255802,3789.9,3789.8,0.19525839]
[1753611905159,5.46255802,3789.9,3789.8,8.39e-06]
[1753611906058,4.7802,3789.4,3789.3,0.8056]
[1753611906859,2.32471,3789.3,3789.2,0.01847331]
[1753611907049,4.78021,3789.3,3789.2,0.82407331]
[1753611908053,4.78021,3789.3,3789.2,0.01847331]
[1753611909158,9.78021,3789.3,3789.2,0.01847331]
[1753611909359,4.78028,3788.8,3788.7,3.2078]
[1753611909559,4.78028,3788.8,3788.7,4.0134]
[1753611910262,4.78028,3788.8,3788.7,5.7135]
[1753611910966,4.78028,3788.8,3788.7,4.5805]
[1753611911259,4.78028,3788.8,3788.7,4.0134]
[1753611914076,4.78034,3788.4,3788.3,1.9386]
[1753611914262,4.78034,3788.4,3788.3,3.2034]
[1753611914558,4.15954,3788.4,3788.3,3.9282]
[1753611914963,4.78034,3788.4,3788.3,3.2034]
[1753611915165,4.78034,3788.4,3788.3,0.8056]
[1753611915661,4.78034,3788.4,3788.3,3.2034]
[1753611915856,4.78034,3788.4,3788.3,0.8056]
[1753611916065,4.15954,3788.4,3788.3,4.4392]
[1753611916767,3.35561,3789.3,3789.2,4.4392]
[1753611916964,4.97841,3789.3,3789.2,4.4392]
[1753611918066,4.97841,3789.3,3789.2,3.2034]
[1753611918265,0.52765,3789.0,3788.9,0.7248]
[1753611918562,4.97845,3789.0,3788.9,1.7001]
[1753611918866,4.97845,3789.0,3788.9,2.5057]
[1753611919067,4.97845,3789.0,3788.9,3.2034]
[1753611919372,4.97845,3789.0,3788.9,3.9282]
[1753611920868,4.97845,3789.0,3788.9,3.2034]
[1753611921765,4.9785,3788.7,3788.6,2.5057]
[1753611922271,4.9785,3788.7,3788.6,3.2034]
[1753611924472,4.9785,3788.7,3788.6,2.0704]
[1753611924873,2.32484,3788.4,3788.3,3.9282]
[1753611925173,4.97854,3788.4,3788.3,4.4392]
[1753611926678,4.15961,3787.9,3787.8,2.40646148]
[1753611926974,4.97861,3787.9,3787.8,2.59316148]
[1753611927164,26.11224,3788.2,3787.3,7.6264]
[1753611927165,3.20998,3787.4,3787.3,7.6264]
[1753611927372,4.97868,3787.4,3787.3,4.4186]
[1753611927868,3.12878,3787.4,3787.3,4.4186]
[1753611928064,24.2696,3788.2,3788.1,0.6868]
[1753611928264,22.64317,3788.2,3788.1,4.4009]
[1753611928778,1.05917,3788.2,3788.1,4.4009]
[1753611928964,23.15347,3788.2,3788.1,4.4009]
[1753611929169,23.99507,3788.2,3788.1,4.4009]
[1753611929369,26.55577,3788.2,3788.1,4.4009]
[1753611929570,3.9337,3787.9,3787.8,3.3259]
[1753611929771,4.97181,3787.9,3787.8,4.4009]
[1753611929973,4.97181,3787.9,3787.8,1.0885]
[1753611930177,3.92195,3787.6,3787.5,4.4009]
[1753611930379,1.56955,3787.6,3787.5,4.4009]
[1753611930578,3.21345,3787.6,3787.5,4.4009]
[1753611931475,3.92195,3787.6,3787.5,4.4009]
[1753611931676,4.97185,3787.6,3787.5,4.4009]
[1753611932177,0.52788,3787.4,3787.3,3.9191]
[1753611932384,4.97188,3787.4,3787.3,7.6087]
[1753611932675,4.97188,3787.4,3787.3,4.4009]
[1753611933083,4.97188,3787.4,3787.3,3.6896]
[1753611933372,4.97188,3787.4,3787.3,2.3195]
[1753611935079,4.97188,3787.4,3787.3,3.1588]
[1753611935480,4.97188,3787.4,3787.3,4.4009]
[1753611936583,1.05928,3787.4,3787.3,4.4009]
[1753611937178,1.31956,3787.8,3787.3,1.7618]
[1753611937385,3.2078,3787.9,3787.3,1.7618]
[1753611937677,25.238,3788.1,3787.6,4.9696]
[1753611937881,0.52784,3787.7,3787.6,4.9696]
[1753611938478,3.657,3788.1,3787.6,7.6087]
[1753611938677,0.52784,3787.7,3787.6,7.6087]
[1753611938979,0.52779,3788.0,3787.9,3.7141]
[1753611939282,0.52779,3788.0,3787.9,2.8503]
[1753611939682,0.52779,3788.0,3787.9,4.4009]
[1753611941386,0.8416,3788.3,3787.9,1.7618]
[1753611941586,1.8833,3788.3,3788.2,4.4009]
[1753611941781,4.60401359,3788.3,3788.2,4.4009]
[1753611943784,5.65391359,3788.3,3788.2,4.4009]
[1753611944578,4.60401359,3788.3,3788.2,4.4009]
[1753611944779,3.92185,3788.3,3788.2,4.4009]
[1753611945084,4.97175,3788.3,3788.2,4.4009]
[1753611945783,4.97182,3787.8,3787.7,3.1833]
[1753611945986,4.97182,3787.8,3787.7,4.4009]
[1753611946191,4.444,3788.4,3788.3,4.4009]
[1753611946479,0.52773,3788.5,3788.3,4.4009]
[1753611946691,0.5277,3788.7,3788.6,4.4009]
[1753611946890,1.20981459,3788.8,3788.6,4.4009]
[1753611947086,1.56939,3788.8,3788.7,7.6087]
[1753611947285,0.52769,3788.8,3788.7,7.6087]
[1753611947479,3.21329,3788.8,3788.7,4.4009]
[1753611947887,3.92179,3788.8,3788.7,4.4009]
[1753611948088,4.97169,3788.8,3788.7,4.4009]
[1753611948292,2.27792,3788.5,3788.4,1.5506]
[1753611948492,4.97172,3788.5,3788.4,3.1588]
[1753611948688,4.97172,3788.5,3788.4,2.3195]
[1753611949194,4.97172,3788.5,3788.4,4.4009]
[1753611951197,5.65454761,3788.5,3788.4,4.4009]
[1753611951397,4.97172,3788.5,3788.4,4.4009]
[1753611953096,4.97172,3788.5,3788.1,3.5403]
[1753611953097,2.27797,3788.2,3788.1,3.5403]
[1753611953303,23.84497,3788.2,3788.1,4.3796]
[1753611953707,26.53877,3788.2,3788.1,4.3796]
[1753611954596,26.53877,3788.2,3788.1,3.5403]
[1753611954795,26.53877,3788.2,3788.1,0.05247]
[1753611955006,2.27801,3787.9,3787.8,2.8535]
[1753611955204,4.97186,3787.5,3787.4,6.7481]
[1753611955607,2.37186,3787.5,3787.4,7.3142]
[1753611955800,0.52786,3787.5,3787.4,7.3142]
[1753611956100,1.31954,3787.9,3787.8,1.4904]
[1753611956303,0.52781,3787.9,3787.8,1.4904]
[1753611956505,0.52781,3787.9,3787.8,3.3071]
[1753611958003,2.36071,3787.9,3787.8,3.3071]
[1753611958203,3.89611,3787.9,3787.8,3.3071]
[1753611958407,3.89611,3787.9,3787.8,2.741]
[1753611958612,4.95341,3787.9,3787.8,2.741]
[1753611961712,0.52781,3787.9,3787.8,3.3265]
[1753611961912,0.52781,3787.9,3787.8,6.5343]
[1753611962214,2.08012,3788.5,3787.8,11.5343]
[1753611962402,0.52768,3788.8,3788.7,2.8897]
[1753611963805,0.52768,3788.8,3788.7,1.2382]
[1753611964511,0.52768,3788.8,3788.7,2.3621]
[1753611965012,3.89598,3788.8,3788.7,2.3042]
[1753611965216,4.95328,3788.8,3788.7,2.3042]
[1753611965517,3.89598,3788.8,3788.7,2.3042]
[1753611965815,3.06978,3788.8,3788.7,2.3042]
[1753611966216,3.89598,3788.8,3788.7,2.3042]
[1753611966407,3.59622,3788.5,3788.4,5.0457]
[1753611966610,4.95332,3788.5,3788.4,4.9531]
[1753611966916,4.95332,3788.5,3788.4,5.0457]
[1753611967117,4.95332,3788.5,3788.4,3.8871]
[1753611967414,4.95332,3788.5,3788.4,0.6793]
[1753611968013,4.95332,3788.5,3788.4,4.9531]
[1753611968214,4.95332,3788.5,3788.4,3.8871]
[1753611968616,4.95337,3788.2,3788.1,0.6793]
[1753611968917,4.95338,3788.1,3788.0,3.2078]
[1753611969513,4.95338,3788.1,3788.0,3.8871]
[1753611970315,4.95338,3788.1,3788.0,5.0457]
[1753611970518,0.7608,3788.1,3788.0,5.1036]
[1753611970717,1.28858,3788.1,3788.0,5.1036]
[1753611970918,0.7608,3788.1,3788.0,5.1036]
[1753611971313,0.52777,3788.2,3788.0,5.1036]
[1753611971618,0.52777,3788.2,3788.1,1.8958]
[1753611972118,3.18678,3788.8,3788.7,1.8379]
[1753611972512,2.36058,3788.8,3788.7,1.8379]
[1753611973918,3.18678,3788.8,3788.7,1.8379]
[1753611974112,3.89598,3788.8,3788.7,1.8379]
[1753611974810,4.95328,3788.8,3788.7,1.8379]
[1753611975015,2.30907,3788.2,3788.1,1.8379]
[1753611975215,4.95337,3788.2,3788.1,1.8379]
[1753611976217,4.95338,3788.1,3788.0,3.2078]
[1753611981126,2.30912,3787.8,3787.7,1.7453]
[1753611981329,4.95342,3787.8,3787.7,1.8379]
[1753611981520,4.95343,3787.7,3787.6,5.0457]
[1753611983721,4.95343,3787.7,3787.6,3.8871]
[1753611984416,4.95343,3787.7,3787.6,5.0457]
[1753611984821,3.89613,3787.7,3787.6,5.0457]
[1753611987129,4.95343,3787.7,3787.6,5.0457]
[1753611987426,1.31963,3787.6,3787.2,3.2078]
[1753611987625,4.87339,3787.3,3787.2,4.9682]
[1753611991728,1.29139,3787.3,3787.2,5.0043]
[1753611992531,1.29139,3787.3,3787.2,4.9682]
[1753611993232,1.79739,3787.3,3787.2,4.9682]
[1753611993629,0.52789,3787.3,3787.2,10.0043]
[1753611993835,1.29135,3787.6,3787.5,0.7565]
[1753611994035,1.29135,3787.6,3787.5,1.7604]
[1753611995930,1.79735,3787.6,3787.5,1.7604]
[1753611997630,3.15655,3787.6,3787.5,1.7604]
[1753611999438,3.15655,3787.6,3787.5,2.28826]
[1753611999740,3.15655,3787.6,3787.5,1.7604]
[1753612000239,4.87335,3787.6,3787.5,1.7604]
[1753612002540,4.87335,3787.6,3787.5,2.28826]
[1753612020548,2.23629,3787.3,3787.2,4.8926]
[1753612020751,4.82329,3787.3,3787.2,4.9047]
[1753612021753,4.82329,3787.3,3787.2,5.43259]
[1753612026155,4.82329,3787.3,3787.2,26.94059]
[1753612026657,1.2466,3787.3,3787.2,26.94059]
[1753612026853,4.2954,3787.3,3787.2,5.43259]
[1753612027057,4.82329,3787.3,3787.2,26.9396]
[1753612028955,0.7468,3787.3,3787.2,26.9396]
[1753612029155,0.7468,3787.3,3787.2,26.9471]
[1753612032471,0.7468,3787.6,3787.5,2.23226]
[1753612032666,0.7468,3787.6,3787.5,23.73326]
[1753612033360,0.7468,3787.6,3787.5,26.08828681]
[1753612033567,0.7468,3787.6,3787.5,23.73326]
[1753612034375,0.7468,3787.6,3787.5,26.08592293]
[1753612034674,0.7468,3787.6,3787.5,23.73326]
[1753612035472,0.7468,3787.6,3787.5,26.08522826]
[1753612037869,1.5782,3788.0,3787.9,1.23011]
[1753612038075,2.8405,3788.0,3787.9,26.92651]
[1753612038375,4.2954,3788.0,3787.9,26.92651]
[1753612043677,0.7468,3788.0,3787.9,26.93401]
[1753612043873,2.5089,3788.0,3787.9,26.92651]
[1753612044177,4.2954,3788.0,3787.9,26.92651]
[1753612044571,4.82319,3788.0,3787.9,3.2078]
[1753612044967,4.82319,3788.0,3787.9,23.8744]
[1753612045169,4.82319,3788.0,3787.9,2.3894]
[1753612048880,4.2954,3788.0,3787.9,2.3894]
[1753612049076,4.2954,3788.0,3787.9,5.85841]
[1753612049275,2.4552,3788.0,3787.9,5.85841]
[1753612049474,3.2135,3788.0,3787.9,5.85841]
[1753612049878,4.2776,3788.0,3787.9,5.85841]
[1753612050378,1.2466,3788.0,3787.9,5.85841]
[1753612050778,2.53269,3788.0,3787.9,5.85841]
[1753612050977,3.02549,3788.0,3787.9,5.85841]
[1753612051180,4.08959,3788.0,3787.9,5.85841]
[1753612051584,4.79649,3788.0,3787.9,5.3306]
[1753612052677,4.79649,3788.0,3787.9,2.3894]
[1753612067594,4.79649,3788.0,3787.5,3.2078]
[1753612067595,4.82815,3787.6,3787.5,3.2078]
[1753612068290,1.7144,3787.2,3787.1,3.2078]
[1753612068486,4.8282,3787.2,3787.1,3.2078]
[1753612069081,0.5279,3787.2,3787.1,6.149]
[1753612069293,4.82813,3787.7,3787.6,2.9412]
[1753612069589,4.82813,3787.7,3787.6,6.149]
[1753612073389,4.82813,3787.7,3787.6,3.2078]
[1753612074088,1.29138,3787.4,3787.3,24.3962]
[1753612074382,3.62848,3787.4,3787.3,27.604]
[1753612074794,4.12128,3787.4,3787.3,27.604]
[1753612075691,4.82818,3787.4,3787.3,27.604]
[1753612076693,4.82818,3787.4,3787.3,6.149]
[1753612076883,4.82818,3787.4,3787.3,27.601]
[1753612078891,4.82818,3787.4,3787.3,5.6362]
[1753612079396,4.82818,3787.4,3787.3,3.2078]
[1753612079987,4.82818,3787.4,3787.3,4.2352]
[1753612080193,4.82818,3787.4,3787.3,6.1593]
[1753612081302,4.82818,3787.4,3787.3,3.2078]
[1753612082290,4.1901,3786.9,3786.8,3.2078]
[1753612082490,4.71805,3786.9,3786.8,3.2078]
[1753612082700,4.71805,3786.9,3786.8,6.1593]
[1753612082900,2.53775,3786.9,3786.8,6.1593]
[1753612083093,1.76905,3786.9,3786.8,6.1593]
[1753612085501,2.53775,3786.9,3786.8,6.1593]
[1753612087000,3.06395,3786.9,3786.8,6.1593]
[1753612087305,4.71805,3786.9,3786.8,6.1593]
[1753612087695,4.71805,3786.9,3786.8,24.6508]
[1753612088391,4.71805,3786.9,3786.8,3.2078]
[1753612089400,1.8004,3788.5,3788.4,1.2077]
[1753612089597,3.98222,3788.5,3788.4,2.9512]
[1753612089790,3.98225,3788.3,3788.2,3.9105]
[1753612089995,4.71785,3788.3,3788.2,3.2078]
[1753612091400,4.9683478,3788.3,3788.2,3.2078]
[1753612092098,4.71785,3788.3,3788.2,3.2078]
[1753612092300,4.1901,3788.3,3788.2,6.159]
[1753612092497,4.71785,3788.3,3788.2,6.159]
[1753612093002,4.71785,3788.3,3788.2,3.9105]
[1753612093197,4.71785,3788.3,3788.2,3.2078]
[1753612093801,9.71785,3788.3,3788.2,3.2078]
[1753612094197,2.19593,3787.8,3787.7,1.2077]
[1753612094396,4.71793,3787.8,3787.7,5.1316]
[1753612094799,4.71793,3787.8,3787.7,6.159]
[1753612096501,4.71793,3787.8,3787.7,3.9105]
[1753612099509,4.71793,3787.8,3787.7,3.2078]
[1753612099709,4.71798,3787.4,3787.3,1.7301]
[1753612100614,4.71798,3787.4,3787.3,2.4462]
[1753612101009,4.71798,3787.4,3787.3,0.7027]
[1753612101916,4.71798,3787.4,3787.3,1.7301]
[1753612102811,4.71798,3787.4,3787.3,0.7027]
[1753612103321,4.71798,3787.4,3787.3,1.7301]
[1753612103519,4.71798,3787.4,3787.3,2.4462]
[1753612103724,4.71798,3787.4,3787.3,1.7301]
[1753612104216,4.71799,3787.3,3787.2,3.2078]
[1753612104520,1.31962,3787.7,3786.8,3.9105]
[1753612104521,1.6681,3786.9,3786.8,3.9105]
[1753612104723,1.6681,3786.9,3786.8,6.159]
[1753612104724,4.71805,3786.9,3786.8,6.159]
[1753612105618,0.5055,3787.4,3787.3,0.505]
[1753612105813,1.26348,3787.4,3787.3,6.159]
[1753612106012,0.52788,3787.4,3787.3,4.4155]
[1753612106417,0.52788,3787.4,3787.3,4.94339]
[1753612106723,1.26348,3787.4,3787.3,6.159]
[1753612107517,0.7356,3787.4,3787.3,6.159]
[1753612107723,0.7134,3787.8,3787.7,1.1531]
[1753612107918,1.24122,3787.8,3787.7,1.1531]
[1753612108416,1.24122,3787.8,3787.7,2.8785]
[1753612108417,4.56442,3787.8,3787.7,2.8785]
[1753612113038,2.88738,3787.4,3787.3,6.0863]
[1753612113240,3.61188,3787.4,3787.3,6.0863]
[1753612114337,4.56448,3787.4,3787.3,6.0863]
[1753612116838,4.56448,3787.4,3787.3,2.8785]
[1753612117033,4.56448,3787.4,3787.3,6.0863]
[1753612121335,4.56448,3787.4,3787.3,3.2078]
[1753612121635,4.56448,3787.4,3786.4,21.444]
[1753612121636,4.56453,3787.0,3786.9,6.0863]
[1753612121832,1.24133,3787.0,3786.9,6.0863]
[1753612122034,0.7134,3787.0,3786.9,6.61425]
[1753612122542,1.24131,3787.2,3787.1,3.40642]
[1753612122839,0.7134,3787.2,3787.1,3.40642]
[1753612123439,1.2413,3787.2,3787.1,3.40642]
[1753612123634,4.5645,3787.2,3787.1,2.8785]
[1753612124036,2.17403,3787.0,3786.9,3.2078]
[1753612124244,4.56453,3787.0,3786.9,3.2078]
[1753612126842,4.56453,3787.0,3786.9,6.0863]
[1753612132646,4.56453,3787.0,3786.9,3.8594]
[1753612133441,4.56453,3787.0,3786.9,3.2078]
[1753612135546,2.17412,3786.4,3786.3,3.9066]
[1753612135745,2.96212,3786.4,3786.3,6.0863]
[1753612135945,1.74132,3786.4,3786.3,6.0863]
[1753612136747,1.24142,3786.4,3786.3,6.0863]
[1753612137751,1.24337,3786.7,3786.6,1.133]
[1753612137952,1.24337,3786.7,3786.6,2.7742]
[1753612141450,1.72017,3786.7,3786.6,2.7742]
[1753612142155,2.21007,3786.7,3786.6,2.7742]
[1753612142354,2.91017,3786.7,3786.6,2.7742]
[1753612142750,4.49657,3786.7,3786.6,2.7742]
[1753612143354,2.11192,3786.4,3786.3,5.0127]
[1753612143547,4.49662,3786.4,3786.3,5.0127]
[1753612144053,4.49662,3786.4,3786.3,5.982]
[1753612144653,4.49662,3786.4,3786.3,3.8378]
[1753612144853,4.49662,3786.4,3786.3,5.982]
[1753612145260,4.49662,3786.4,3786.3,6.51003]
[1753612146059,0.7154,3786.4,3786.3,6.51003]
[1753612146555,1.72022,3786.4,3786.3,6.51003]
[1753612146858,2.91022,3786.4,3786.3,6.51003]
[1753612147755,4.49662,3786.4,3786.3,6.51003]
[1753612150348,0.52802,3786.4,3786.3,6.51003]
[1753612150549,1.00478,3786.8,3786.7,1.03095]
[1753612150749,4.49658,3786.8,3786.7,5.9713]
[1753612150954,4.49658,3786.8,3786.7,3.2078]
[1753612158356,1.5839,3786.4,3786.3,3.2078]
[1753612158559,3.9686,3786.4,3786.3,4.8071]
[1753612158761,3.9686,3786.4,3786.3,5.4683]
[1753612159067,4.49662,3786.4,3786.3,5.4683]
[1753612159567,4.49662,3786.4,3786.3,5.9713]
[1753612159768,1.24342,3786.4,3786.3,6.49933]
[1753612160660,1.24342,3786.4,3786.3,5.9713]
[1753612161368,4.49662,3786.4,3786.3,5.9713]
[1753612161568,4.49662,3786.4,3786.3,4.8071]
[1753612161769,4.49662,3786.4,3786.3,3.8378]
[1753612163470,4.49662,3786.4,3786.3,5.4683]
[1753612163969,4.49662,3786.4,3786.3,4.8071]
[1753612168273,4.49662,3786.4,3786.3,3.2078]
[1753612173181,4.49662,3786.4,3786.3,4.8792]
[1753612173379,4.49662,3786.4,3786.3,6.0163]
[1753612173580,4.49662,3786.4,3786.3,4.8792]
[1753612174084,4.49662,3786.4,3786.3,3.87]
[1753612174482,4.49662,3786.4,3786.3,4.8792]
[1753612176079,4.49662,3786.4,3786.3,6.0163]
[1753612176280,1.24342,3786.4,3786.3,6.0163]
[1753612176978,0.721,3786.7,3786.4,0.6454]
[1753612177285,1.24897,3786.7,3786.6,2.1631]
[1753612177486,1.73967,3786.7,3786.6,2.1631]
[1753612177686,1.73967,3786.7,3786.6,2.8085]
[1753612177888,4.53087,3786.7,3786.6,2.8085]
[1753612178479,3.57537,3786.7,3786.6,2.8085]
[1753612178678,2.20417,3786.7,3786.6,2.8085]
[1753612178878,1.73967,3786.7,3786.6,2.8085]
[1753612179590,2.47787,3786.7,3786.6,2.8085]
[1753612180089,2.94237,3786.7,3786.6,2.8085]
[1753612180285,3.89787,3786.7,3786.6,2.8085]
[1753612181184,1.24897,3786.7,3786.6,2.8085]
[1753612181389,1.24897,3786.7,3786.6,3.33649]
[1753612188999,1.73967,3786.7,3786.6,3.33649]
[1753612189197,2.47787,3786.7,3786.6,3.33649]
[1753612189497,3.89787,3786.7,3786.6,3.33649]
[1753612189998,4.53087,3786.7,3786.6,3.33649]
[1753612190899,4.53087,3786.7,3786.6,2.8085]
[1753612191300,4.53087,3786.7,3786.6,3.33649]
[1753612192400,4.53092,3786.4,3786.3,5.88213]
[1753612192701,4.53092,3786.4,3786.3,6.54433]
[1753612193901,2.4144,3786.4,3786.3,6.54433]
[1753612194204,2.94242,3786.4,3786.3,6.54433]
[1753612194605,1.6762,3786.4,3786.3,6.54433]
[1753612194804,2.20422,3786.4,3786.3,6.54433]
[1753612196501,1.24902,3786.4,3786.3,6.54433]
[1753612197403,1.73972,3786.4,3786.3,6.54433]
[1753612198602,1.2117,3786.4,3786.3,6.54433]
[1753612199099,0.721,3786.4,3786.3,6.54433]
[1753612206510,40.8,3788.5,3787.5,0.6194]
[1753612206814,3.68341,3787.3,3787.2,2.6978]
[1753612207008,4.41071,3787.3,3787.2,5.9056]
[1753612208015,4.41071,3787.3,3787.2,6.43349]
[1753612209515,4.41071,3787.3,3787.2,3.7357]
[1753612209713,4.41071,3787.3,3787.2,3.2078]
[1753612210110,4.41071,3787.3,3787.2,1.7196]
[1753612210421,4.41075,3786.9,3786.8,3.2078]
[1753612210719,4.41075,3786.9,3786.4,3.93166826]
[1753612210720,1.49492,3786.4,3786.3,3.2078]
[1753612210918,1.49492,3786.4,3786.3,6.01203]
[1753612210919,4.41082,3786.4,3786.3,6.01203]
[1753612211122,4.41082,3786.4,3786.3,7.70093]
[1753612211624,4.41082,3786.4,3786.3,7.1729]
[1753612211816,4.41082,3786.4,3786.3,5.484]
[1753612212121,4.41082,3786.4,3786.3,4.8499]
[1753612212319,4.41082,3786.4,3786.3,3.2078]
[1753612218332,4.41083,3786.3,3786.2,0.01848795]
[1753612219613,2.10549,3785.9,3785.8,0.19546469]
[1753612219815,4.41089,3785.9,3785.8,0.19546469]
[1753612222317,4.41089,3785.9,3785.8,4.69e-06]
[1753612227016,4.41089,3785.9,3785.1,3.2078]
[1753612227218,4.41098,3785.2,3785.1,5.8102]
[1753612228429,2.15131,3785.0,3784.9,3.0823]
[1753612228721,0.52823,3784.9,3784.8,0.9049]
[1753612228925,4.53093,3784.9,3784.8,2.1235]
[1753612229130,4.53093,3784.9,3784.8,3.9769]
[1753612232739,4.53097,3784.6,3784.5,2.6102]
[1753612233030,0.52827,3784.6,3784.5,3.9769]
[1753612233827,0.6906,3785.3,3784.9,0.7183]
[1753612234032,0.52817,3785.3,3785.2,3.2425]
[1753612234229,0.52817,3785.3,3785.2,3.9769]
[1753612235634,1.02247,3785.3,3785.2,3.9769]
[1753612235830,0.52817,3785.3,3785.2,3.9769]
[1753612236429,0.52817,3785.3,3785.2,4.50508]
[1753612236932,0.52811,3785.7,3785.6,1.6193]
[1753612237136,0.52811,3785.7,3785.6,4.50503]
[1753612237335,0.52811,3785.7,3785.6,3.9769]
[1753612237537,0.52811,3785.7,3785.6,4.50503]
[1753612238136,3.8507,3786.4,3786.3,3.9769]
[1753612238337,4.37872,3786.4,3786.3,3.9769]
[1753612238740,0.52802,3786.4,3786.3,3.9769]
[1753612239439,2.62442,3786.4,3786.3,3.9769]
[1753612239628,3.31502,3786.4,3786.3,3.9769]